fUST/lending_fUST_20250718
["ID","MTS","AMOUNT","RATE_DAILY","PERIOD"]
[373045332,1752846655351,-1500.0,0.00020742,2]
[373045334,1752846655360,-217.17818657,0.00020773,2]
[373045336,1752846655370,-1298.35,0.00020781,2]
[373045338,1752846655379,-1845.69,0.00020781,2]
[373045340,1752846655388,-1222.58,0.00020781,2]
[373045342,1752846655403,-3914.0,0.00020795,2]
[373045344,1752846655412,-2252.23550073,0.00020797,4]
[373045346,1752846655421,-151.0,0.000208,3]
[373045348,1752846655431,-2892.86,0.000208,2]
[373045350,1752846655440,-463.75,0.000208,2]
[373045361,1752846655535,-3857.05,0.000208,2]
[373045364,1752846655545,-1821.61,0.000208,2]
[373045366,1752846655555,-1727.91,0.000208,2]
[373045368,1752846655564,-1582.6,0.000208,2]
[373045370,1752846655573,-1350.12,0.000208,2]
[373045372,1752846655583,-460.0,0.000208,2]
[373045374,1752846655592,-460.0,0.00020802,2]
[373045375,1752846655602,-582.13954728,0.00020802,2]
[373045376,1752846655611,-594.63,0.00020802,2]
[373045377,1752846655620,-460.0,0.00020802,2]
[373045378,1752846655629,-1136.15,0.00020802,2]
[373045379,1752846655638,-901.37,0.00020802,2]
[373045380,1752846655650,-461.81503977,0.00020803,2]
[373045381,1752846655659,-460.0,0.00020803,2]
[373045382,1752846655668,-584.64,0.00020803,2]
[373045384,1752846655677,-2981.59,0.00020803,2]
[373045386,1752846655687,-882.79,0.00020803,2]
[373045388,1752846655696,-1289.85,0.00020804,2]
[373045390,1752846655706,-153.0,0.00020822,2]
[373045392,1752846655715,-341.0,0.00020846,2]
[373045394,1752846655725,-151.0,0.00020888,2]
[373045396,1752846655734,-677.696,0.00020898,2]
[373045398,1752846655743,-178.372,0.00020898,2]
[373045400,1752846655752,-249.93178815,0.000209,2]
[373045402,1752846655762,-151.0,0.00020904,2]
[373045404,1752846655771,-151.159982,0.00020904,2]
[373045406,1752846655781,-151.0,0.00020904,2]
[373045408,1752846655790,-151.0,0.00020904,2]
[373045410,1752846655799,-5000.0,0.00020979,2]
[373045412,1752846655808,-151.0,0.00020979,2]
[373045414,1752846655818,-151.0,0.00020979,2]
[373045416,1752846655827,-3914.0,0.00020979,2]
[373045418,1752846655837,-3925.47014367,0.00021,2]
[373045420,1752846655846,-270.05170143,0.00021,2]
[373045422,1752846655856,-35000.0,0.00021,2]
[373045424,1752846655865,-500.0,0.00021015,2]
[373045426,1752846655874,-1500.0,0.00021015,2]
[373045428,1752846655884,-2252.23550073,0.00021038,4]
[373045430,1752846655895,-1298.35,0.00021055,2]
[373045432,1752846655905,-1845.69,0.00021055,2]
[373045434,1752846655915,-1222.58,0.00021055,2]
[373045436,1752846655924,-2892.86,0.00021074,2]
[373045438,1752846655934,-463.75,0.00021074,2]
[373045440,1752846655943,-3857.05,0.00021074,2]
[373045442,1752846655952,-1821.61,0.00021074,2]
[373045444,1752846655962,-1727.91,0.00021074,2]
[373045446,1752846655972,-1582.6,0.00021074,2]
[373045448,1752846655981,-1350.12,0.00021074,2]
[373045450,1752846655993,-460.0,0.00021074,2]
[373045452,1752846656003,-460.0,0.00021076,2]
[373045454,1752846656012,-594.63,0.00021076,2]
[373045456,1752846656022,-489.00850025,0.00021076,2]
[373045458,1752846656031,-1136.15,0.00021076,2]
[373045460,1752846656041,-901.37,0.00021076,2]
[373045462,1752846656051,-460.0,0.00021077,2]
[373045464,1752846656061,-584.64,0.00021077,2]
[373045466,1752846656071,-2981.59,0.00021077,2]
[373045468,1752846656080,-882.79,0.00021077,2]
[373045470,1752846656090,-1289.85,0.00021078,2]
[373045472,1752846656099,-151.0,0.0002108,2]
[373045474,1752846656108,-151.0,0.000211,4]
[373045476,1752846656118,-700.0,0.00021105,2]
[373045478,1752846656127,-464.83989036,0.00021173,2]
[373045480,1752846656137,-200.0,0.00021193,2]
[373045482,1752846656148,-176508.1610722,0.00021194,2]
[373045484,1752846656157,-151.0,0.00021194,2]
[373045486,1752846656167,-151.0,0.00021194,2]
[373045488,1752846656176,-249.754026,0.00021194,2]
[373045490,1752846656185,-249.754026,0.00021194,2]
[373045492,1752846656194,-151.0,0.00021194,2]
[373045494,1752846656203,-314.889035,0.00021194,2]
[373045496,1752846656213,-151.0,0.00021194,2]
[373045498,1752846656222,-314.889035,0.00021194,2]
[373045500,1752846656232,-243.483681,0.00021194,2]
[373045502,1752846656241,-243.483681,0.00021194,2]
[373045504,1752846656250,-151.0,0.00021194,2]
[373045506,1752846656259,-416.331597,0.00021194,2]
[373045508,1752846656268,-416.331597,0.00021194,2]
[373045510,1752846656278,-151.0,0.00021194,2]
[373045512,1752846656287,-160.994315,0.00021194,2]
[373045514,1752846656296,-151.0,0.00021194,2]
[373045516,1752846656306,-151.0,0.00021194,2]
[373045518,1752846656315,-151.0,0.00021194,2]
[373045520,1752846656324,-151.0,0.00021194,2]
[373045522,1752846656334,-151.0,0.00021194,2]
[373045524,1752846656343,-224.680209,0.00021194,2]
[373045526,1752846656352,-224.680209,0.00021194,2]
[373045528,1752846656361,-151.0,0.00021194,2]
[373045530,1752846656371,-528.865095,0.00021194,2]
[373045532,1752846656380,-528.865095,0.00021194,2]
[373045534,1752846656389,-151.0,0.00021194,2]
[373045536,1752846656400,-151.0,0.00021194,2]
[373045538,1752846656410,-201.335055,0.00021194,2]
[373045540,1752846656419,-201.335055,0.00021194,2]
[373045542,1752846656429,-2019.401165,0.00021194,2]
[373045544,1752846656438,-2019.401165,0.00021194,2]
[373045546,1752846656448,-151.0,0.00021194,2]
[373045548,1752846656457,-151.0,0.00021194,2]
[373045550,1752846656467,-151.0,0.00021194,2]
[373045552,1752846656476,-151.0,0.00021194,2]
[373045555,1752846656485,-163.293096,0.00021194,2]
[373045557,1752846656494,-163.293096,0.00021194,2]
[373045558,1752846656504,-151.0,0.00021194,2]
[373045560,1752846656514,-151.0,0.00021194,2]
[373045562,1752846656523,-151.0,0.00021194,2]
[373045564,1752846656533,-285.623926,0.00021194,2]
[373045567,1752846656543,-151.0,0.00021194,2]
[373045569,1752846656552,-151.0,0.00021194,2]
[373045571,1752846656562,-151.0,0.00021194,2]
[373045573,1752846656571,-359.761692,0.00021194,2]
[373045575,1752846656580,-359.761692,0.00021194,2]
[373045576,1752846656589,-518.305928,0.00021194,2]
[373045578,1752846656598,-518.305928,0.00021194,2]
[373045580,1752846656607,-319.243488,0.00021194,2]
[373045582,1752846656617,-319.243488,0.00021194,2]
[373045585,1752846656626,-151.0,0.00021194,2]
[373045586,1752846656635,-151.0,0.00021194,2]
[373045589,1752846656645,-299.854066,0.00021194,2]
[373045591,1752846656654,-299.854066,0.00021194,2]
[373045593,1752846656663,-151.0,0.00021194,2]
[373045595,1752846656672,-1019.620488,0.00021194,2]
[373045597,1752846656681,-1019.620488,0.00021194,2]
[373045598,1752846656690,-151.0,0.00021194,2]
[373045601,1752846656699,-151.0,0.00021194,2]
[373045602,1752846656711,-151.0,0.00021194,2]
[373045604,1752846656720,-151.0,0.00021194,2]
[373045606,1752846656730,-360.415099,0.00021194,2]
[373045608,1752846656739,-151.0,0.00021194,2]
[373045610,1752846656748,-360.415099,0.00021194,2]
[373045612,1752846656757,-151.0,0.00021194,2]
[373045615,1752846656766,-1710.6678412,0.00021229,2]
[373045617,1752846656775,-151.0,0.00021231,2]
[373045619,1752846656784,-279.256129,0.00021231,2]
[373045621,1752846656794,-151.0,0.00021231,2]
[373045623,1752846656803,-151.0,0.00021231,2]
[373045625,1752846656813,-177.396126,0.00021231,2]
[373045627,1752846656822,-177.396126,0.00021231,2]
[373045629,1752846656832,-151.0,0.00021231,2]
[373045631,1752846656840,-151.0,0.00021231,2]
[373045633,1752846656850,-151.0,0.00021231,2]
[373045635,1752846656859,-151.0,0.00021231,2]
[373045637,1752846656869,-151.0,0.00021231,2]
[373045639,1752846656878,-151.0,0.00021231,2]
[373045641,1752846656887,-1000.0,0.00021249,2]
[373045643,1752846656898,-1500.0,0.00021249,2]
[373045645,1752846656907,-660.0,0.00021256,2]
[373045647,1752846656917,-151.0,0.00021273,2]
[373045649,1752846656926,-2252.23550073,0.00021279,5]
[373045651,1752846656936,-3914.0,0.00021285,2]
[373045653,1752846656945,-2000.0,0.0002129,2]
[373045655,1752846656954,-151.0,0.000213,3]
[373045657,1752846656964,-3914.0,0.0002132,2]
[373045659,1752846656974,-868.17749844,0.00021329,2]
[373047837,1752847085704,6000.0,0.000164,2]
[373047839,1752847105589,287.715929,0.00013699,2]
[373047846,1752847305257,1000.0,0.000212,60]
[373047847,1752847307970,1000.0,0.000212,60]
[373047848,1752847308349,1000.0,0.000212,60]
[373047849,1752847308780,1000.0,0.000212,60]
[373047850,1752847309200,1000.0,0.000212,60]
[373047851,1752847309867,1000.0,0.000212,60]
[373047852,1752847310165,1000.0,0.000212,60]
[373047853,1752847310564,1000.0,0.000212,60]
[373047854,1752847310949,1000.0,0.000212,60]
[373047897,1752847512041,-283.3610151,0.00016488,2]
[373047898,1752847512070,-292.89699069,0.000165,2]
[373047900,1752847520858,708.99475337,0.00016487,2]
[373047902,1752847548174,188.9073434,0.00016487,2]
[373047912,1752847631226,-188.90734338,0.00016539,2]
[373047913,1752847631253,-1200.0,0.0001657,2]
[373047914,1752847631276,-300.0,0.00016571,2]
[373047915,1752847631301,-300.0,0.00016572,2]
[373047916,1752847631325,-299.0,0.00016572,2]
[373047917,1752847631346,-300.0,0.00016572,2]
[373047918,1752847631368,-300.0,0.00016572,2]
[373047919,1752847631391,-1200.0,0.00016572,2]
[373047920,1752847631412,-505.41930745,0.00016573,2]
[373047921,1752847631434,-500.0,0.00016573,2]
[373047922,1752847631456,-159.42,0.00016582,3]
[373047923,1752847631481,-478.3,0.00016582,3]
[373047924,1752847631503,-151.5694,0.00016582,2]
[373047925,1752847631526,-500.0,0.00016586,2]
[373047926,1752847631550,-500.0,0.00016586,2]
[373047927,1752847631571,-500.0,0.00016586,2]
[373047928,1752847631592,-500.0,0.00016586,2]
[373047929,1752847631614,-500.0,0.00016586,2]
[373047930,1752847631637,-500.0,0.00016586,2]
[373047931,1752847631658,-500.0,0.00016586,2]
[373047932,1752847631679,-500.0,0.00016586,2]
[373047933,1752847631701,-500.0,0.00016586,2]
[373047934,1752847631726,-557.59295122,0.00016586,2]
[373047935,1752847631748,-500.0,0.00016586,2]
[373047936,1752847631772,-500.0,0.00016586,2]
[373047937,1752847631796,-500.0,0.00016586,2]
[373047938,1752847631820,-500.0,0.00016586,2]
[373047939,1752847631841,-500.0,0.00016586,2]
[373047940,1752847631864,-500.0,0.00016586,2]
[373047941,1752847631886,-500.0,0.00016586,2]
[373047942,1752847631909,-500.0,0.00016586,2]
[373047943,1752847631930,-500.0,0.00016586,2]
[373047944,1752847631952,-500.0,0.00016586,2]
[373047945,1752847631976,-384.85943815,0.00016586,2]
[373047946,1752847631998,-500.0,0.00016586,2]
[373047947,1752847632023,-500.0,0.00016586,2]
[373047948,1752847632044,-500.0,0.00016586,2]
[373047949,1752847632065,-500.0,0.00016586,2]
[373047950,1752847632086,-500.0,0.00016586,2]
[373047951,1752847632108,-500.0,0.00016586,2]
[373047952,1752847632131,-500.0,0.00016586,2]
[373047953,1752847632152,-500.0,0.00016586,2]
[373047954,1752847632175,-500.0,0.00016586,2]
[373047955,1752847632196,-500.0,0.00016586,2]
[373047956,1752847632224,-500.0,0.00016586,2]
[373047957,1752847632249,-500.0,0.00016586,2]
[373047958,1752847632273,-500.0,0.00016586,2]
[373047959,1752847632298,-500.0,0.00016586,2]
[373047960,1752847632324,-500.0,0.00016586,2]
[373047961,1752847632347,-538.65029705,0.00016586,2]
[373047962,1752847632370,-500.0,0.00016586,2]
[373047963,1752847632394,-500.0,0.00016586,2]
[373047964,1752847632418,-500.0,0.00016586,2]
[373047965,1752847632440,-539.64320885,0.00016586,2]
[373047966,1752847632467,-500.0,0.00016586,2]
[373047967,1752847632491,-300.89452287,0.00016586,2]
[373047968,1752847632514,-500.0,0.00016586,2]
[373047969,1752847632537,-500.0,0.00016586,2]
[373047970,1752847632558,-500.0,0.00016586,2]
[373047971,1752847632580,-500.0,0.00016586,2]
[373047972,1752847632603,-500.0,0.00016586,2]
[373047973,1752847632624,-500.0,0.00016586,2]
[373047974,1752847632647,-250.0,0.00016586,2]
[373047975,1752847632669,-500.0,0.00016586,2]
[373047976,1752847632691,-500.0,0.00016586,2]
[373047977,1752847632716,-500.0,0.00016586,2]
[373047978,1752847632738,-500.0,0.00016586,2]
[373047979,1752847632760,-500.0,0.00016586,2]
[373047980,1752847632781,-500.0,0.00016586,2]
[373047981,1752847632804,-500.0,0.00016586,2]
[373047982,1752847632826,-500.0,0.00016586,2]
[373047983,1752847632849,-500.0,0.00016586,2]
[373047984,1752847632872,-500.0,0.00016586,2]
[373047985,1752847632893,-500.0,0.00016586,2]
[373047986,1752847632915,-500.0,0.00016586,2]
[373047987,1752847632938,-500.0,0.00016586,2]
[373047988,1752847632961,-500.0,0.00016586,2]
[373047989,1752847632986,-500.0,0.00016586,2]
[373047990,1752847633008,-500.0,0.00016586,2]
[373047991,1752847633037,-500.0,0.00016586,2]
[373047992,1752847633082,-241.95908743,0.00016586,2]
[373047994,1752847659052,202.27495818,0.00016389,2]
[373048008,1752847711236,620.37040919,0.00016489,2]
[373048067,1752847793649,335.26568344,0.00016486,2]
[373048137,1752847832328,-318.84,0.00016582,3]
[373048138,1752847832339,-237.29448238,0.00016582,2]
[373048139,1752847832350,-42.60678453,0.00016582,2]
[373048140,1752847832360,-300.0,0.00016585,2]
[373048142,1752847832369,-336.42873309,0.00016585,2]
[373048143,1752847832383,-863.57126691,0.00016585,2]
[373048144,1752847832393,-300.0,0.00016585,2]
[373048145,1752847832403,-460.0,0.00016586,2]
[373048146,1752847832412,-460.0,0.00016586,2]
[373048147,1752847832422,-501.5687008,0.00016586,2]
[373048148,1752847832432,-460.0,0.00016586,2]
[373048149,1752847832441,-460.0,0.00016586,2]
[373048150,1752847832450,-460.0,0.00016586,2]
[373048151,1752847832460,-995.26,0.00016586,2]
[373048152,1752847832469,-463.58863773,0.00016586,2]
[373048153,1752847832479,-160.0,0.00016586,2]
[373048154,1752847832488,-370.41977619,0.00016587,2]
[373048156,1752847838281,-500.0,0.00016585,2]
[373048157,1752847838297,-500.0,0.00016585,2]
[373048158,1752847838308,-500.0,0.00016585,2]
[373048159,1752847838317,-500.0,0.00016585,2]
[373048160,1752847838328,-500.0,0.00016585,2]
[373048161,1752847838339,-500.0,0.00016585,2]
[373048162,1752847838349,-500.0,0.00016585,2]
[373048163,1752847838359,-401.76907287,0.00016585,2]
[373048164,1752847838369,-226.62702321,0.00016585,2]
[373048165,1752847838381,-500.0,0.00016585,2]
[373048166,1752847838391,-500.0,0.00016585,2]
[373048168,1752847838401,-500.0,0.00016585,2]
[373048170,1752847838411,-500.0,0.00016585,2]
[373048172,1752847838422,-489.48316154,0.00016585,2]
[373048175,1752847838434,-10.51683846,0.00016585,2]
[373048177,1752847838444,-500.0,0.00016585,2]
[373048179,1752847838453,-500.0,0.00016585,2]
[373048181,1752847838463,-500.0,0.00016585,2]
[373048183,1752847838472,-500.0,0.00016585,2]
[373048185,1752847838482,-500.0,0.00016585,2]
[373048187,1752847838492,-500.0,0.00016585,2]
[373048189,1752847838502,-500.0,0.00016585,2]
[373048191,1752847838512,-500.0,0.00016585,2]
[373048193,1752847838522,-361.17402136,0.00016585,2]
[373048195,1752847838531,-549.38611444,0.00016585,2]
[373048197,1752847838541,-500.0,0.00016585,2]
[373048199,1752847838550,-500.0,0.00016585,2]
[373048201,1752847838559,-500.0,0.00016585,2]
[373048204,1752847838569,-500.0,0.00016585,2]
[373048207,1752847838579,-500.0,0.00016585,2]
[373048210,1752847838588,-500.0,0.00016585,2]
[373048213,1752847838598,-500.0,0.00016585,2]
[373048216,1752847838607,-500.0,0.00016585,2]
[373048221,1752847838621,-500.0,0.00016585,2]
[373048223,1752847838634,-568.74434889,0.00016585,2]
[373048225,1752847838644,-413.69526882,0.00016585,2]
[373048227,1752847838657,-86.30473118,0.00016585,2]
[373048229,1752847838667,-466.06457738,0.00016585,2]
[373048231,1752847838679,-33.93542262,0.00016585,2]
[373048233,1752847838688,-500.0,0.00016585,2]
[373048236,1752847838698,-500.0,0.00016585,2]
[373048238,1752847838708,-500.0,0.00016585,2]
[373048240,1752847838718,-282.07225523,0.00016585,2]
[373048242,1752847838728,-89.58022381,0.00016587,2]
[373048244,1752847838738,-460.0,0.00016587,2]
[373048246,1752847838748,-460.0,0.00016587,2]
[373048248,1752847838758,-1928.52,0.00016587,2]
[373048250,1752847838768,-460.0,0.00016587,2]
[373048252,1752847838777,-460.0,0.00016587,2]
[373048254,1752847838787,-460.0,0.00016587,2]
[373048256,1752847838796,-478.34951911,0.00016587,2]
[373048258,1752847838809,-460.0,0.00016587,2]
[373048260,1752847838819,-1484.26,0.00016587,2]
[373048262,1752847838828,-460.0,0.00016587,2]
[373048264,1752847838838,-362.84614954,0.00016587,2]
[373048267,1752847838848,-564.52783286,0.00016587,2]
[373048269,1752847838857,-460.0,0.00016587,2]
[373048271,1752847838866,-460.0,0.00016587,2]
[373048273,1752847838879,-460.0,0.00016587,2]
[373048275,1752847838889,-460.0,0.00016587,2]
[373048277,1752847838899,-1131.96,0.00016587,2]
[373048279,1752847838909,-460.0,0.00016587,2]
[373048281,1752847838919,-460.0,0.00016587,2]
[373048283,1752847838928,-460.0,0.00016587,2]
[373048285,1752847838938,-460.0,0.00016587,2]
[373048287,1752847838948,-460.0,0.00016587,2]
[373048289,1752847838957,-460.0,0.00016588,2]
[373048291,1752847838967,-460.0,0.00016588,2]
[373048311,1752847839115,-460.0,0.00016588,2]
[373048314,1752847839165,-2924.02,0.00016588,2]
[373048316,1752847839175,-460.0,0.00016588,2]
[373048319,1752847839185,-460.0,0.00016588,2]
[373048321,1752847839195,-460.0,0.00016588,2]
[373048323,1752847839205,-1466.67,0.00016588,2]
[373048324,1752847839214,-460.0,0.00016589,2]
[373048326,1752847839224,-460.0,0.00016589,2]
[373048329,1752847839234,-565.0,0.00016589,2]
[373048331,1752847839244,-151.0,0.00016589,2]
[373048333,1752847839254,-500.0,0.00016589,2]
[373048335,1752847839263,-198.0,0.00016589,2]
[373048337,1752847839273,-151.0,0.00016589,2]
[373048339,1752847839285,-151.0,0.00016589,2]
[373048341,1752847839298,-151.0,0.00016589,2]
[373048343,1752847839308,-151.0,0.00016589,2]
[373048345,1752847839318,-151.0,0.00016589,2]
[373048347,1752847839328,-834.29466255,0.00016589,2]
[373048349,1752847839339,-834.29466255,0.00016589,2]
[373048351,1752847839348,-834.29466255,0.00016589,2]
[373048353,1752847839358,-500.0,0.00016589,2]
[373048355,1752847839369,-834.29466255,0.00016589,2]
[373048357,1752847839382,-467.93390151,0.00016589,2]
[373048359,1752847839392,-834.29466255,0.00016589,2]
[373048362,1752847839401,-834.29466255,0.00016589,2]
[373048363,1752847839411,-834.29466255,0.00016589,2]
[373048366,1752847839421,-834.29466255,0.00016589,2]
[373048368,1752847839435,-834.29466255,0.00016589,2]
[373048370,1752847839445,-834.29466255,0.00016589,2]
[373048372,1752847839455,-834.29466255,0.00016589,2]
[373048374,1752847839466,-834.29466255,0.00016589,2]
[373048376,1752847839475,-858.1316529,0.00016589,2]
[373048378,1752847839484,-858.1316529,0.00016589,2]
[373048380,1752847839494,-858.1316529,0.00016589,2]
[373048382,1752847839504,-858.1316529,0.00016589,2]
[373048384,1752847839514,-858.1316529,0.00016589,2]
[373048386,1752847839525,-858.1316529,0.00016589,2]
[373048388,1752847839534,-858.1316529,0.00016589,2]
[373048390,1752847839544,-858.1316529,0.00016589,2]
[373048392,1752847839554,-858.1316529,0.00016589,2]
[373048394,1752847839564,-858.1316529,0.00016589,2]
[373048396,1752847839574,-858.1316529,0.00016589,2]
[373048398,1752847839584,-847.02641974,0.00016589,2]
[373048400,1752847839594,-847.02641974,0.00016589,2]
[373048402,1752847839604,-847.02641974,0.00016589,2]
[373048404,1752847839615,-847.02641974,0.00016589,2]
[373048406,1752847839624,-847.02641974,0.00016589,2]
[373048408,1752847839636,-460.0,0.0001659,2]
[373048410,1752847839646,-460.0,0.0001659,2]
[373048412,1752847839656,-460.0,0.0001659,2]
[373048413,1752847839666,-460.0,0.0001659,2]
[373048414,1752847839676,-460.0,0.0001659,2]
[373048415,1752847839685,-460.0,0.0001659,2]
[373048416,1752847839695,-460.0,0.0001659,2]
[373048417,1752847839704,-460.0,0.0001659,2]
[373048418,1752847839714,-460.0,0.0001659,2]
[373048419,1752847839724,-460.0,0.0001659,2]
[373048420,1752847839733,-460.0,0.0001659,2]
[373048421,1752847839742,-460.0,0.0001659,2]
[373048422,1752847839751,-460.0,0.0001659,2]
[373048423,1752847839760,-460.0,0.0001659,2]
[373048424,1752847839769,-225.83226104,0.0001659,2]
[373048425,1752847839778,-460.0,0.0001659,2]
[373048426,1752847839787,-460.0,0.0001659,2]
[373048427,1752847839796,-460.0,0.0001659,2]
[373048428,1752847839805,-460.0,0.0001659,2]
[373048429,1752847839814,-460.0,0.0001659,2]
[373048430,1752847839823,-460.0,0.0001659,2]
[373048431,1752847839832,-460.0,0.0001659,2]
[373048432,1752847839841,-151.0,0.0001659,2]
[373048433,1752847839851,-151.0,0.0001659,2]
[373048434,1752847839860,-460.0,0.0001659,2]
[373048435,1752847839869,-289.98534218,0.0001659,2]
[373048438,1752847839885,-170.01465782,0.0001659,2]
[373048441,1752847839896,-460.0,0.0001659,2]
[373048444,1752847839905,-460.0,0.0001659,2]
[373048446,1752847839917,-460.0,0.0001659,2]
[373048448,1752847839928,-460.0,0.0001659,2]
[373048450,1752847839937,-250.57475707,0.0001659,2]
[373048452,1752847839946,-460.0,0.0001659,2]
[373048454,1752847839956,-460.0,0.0001659,2]
[373048456,1752847839966,-500.0,0.0001659,2]
[373048458,1752847839975,-151.0,0.0001659,2]
[373048460,1752847839987,-151.0,0.0001659,2]
[373048462,1752847839996,-460.0,0.0001659,2]
[373048464,1752847840006,-460.0,0.0001659,2]
[373048466,1752847840015,-460.0,0.0001659,2]
[373048468,1752847840026,-500.0,0.0001659,2]
[373048470,1752847840036,-460.0,0.0001659,2]
[373048472,1752847840046,-460.0,0.0001659,2]
[373048474,1752847840055,-460.0,0.0001659,2]
[373048476,1752847840065,-460.0,0.0001659,2]
[373048478,1752847840074,-373.19260071,0.0001659,2]
[373048495,1752847840228,-86.80739929,0.0001659,2]
[373048497,1752847840238,-460.0,0.0001659,2]
[373048499,1752847840248,-460.0,0.0001659,2]
[373048501,1752847840257,-460.0,0.0001659,2]
[373048503,1752847840267,-190.23465194,0.0001659,2]
[373048505,1752847840277,-64.56001585,0.0001659,2]
[373048507,1752847840290,-395.43998415,0.0001659,2]
[373048509,1752847840302,-460.0,0.0001659,2]
[373048511,1752847840311,-460.0,0.0001659,2]
[373048513,1752847840321,-46.10383447,0.0001659,2]
[373048516,1752847840332,-413.89616553,0.0001659,2]
[373048518,1752847840343,-460.0,0.0001659,2]
[373048520,1752847840353,-460.0,0.0001659,2]
[373048522,1752847840363,-460.0,0.0001659,2]
[373048524,1752847840373,-460.0,0.0001659,2]
[373048526,1752847840386,-460.0,0.0001659,2]
[373048527,1752847840396,-460.0,0.0001659,2]
[373048530,1752847840406,-460.0,0.0001659,2]
[373048531,1752847840415,-460.0,0.0001659,2]
[373048534,1752847840425,-460.0,0.0001659,2]
[373048535,1752847840434,-460.0,0.0001659,2]
[373048537,1752847840444,-1060.82271161,0.0001659,2]
[373048539,1752847840455,-460.0,0.0001659,2]
[373048542,1752847840464,-475.1,0.0001659,2]
[373048544,1752847840474,-460.0,0.0001659,2]
[373048545,1752847840484,-460.0,0.0001659,2]
[373048547,1752847840494,-460.0,0.0001659,2]
[373048549,1752847840504,-460.0,0.0001659,2]
[373048551,1752847840514,-460.0,0.0001659,2]
[373048553,1752847840523,-460.0,0.0001659,2]
[373048555,1752847840533,-460.0,0.0001659,2]
[373048557,1752847840542,-460.0,0.0001659,2]
[373048559,1752847840551,-890.26,0.0001659,2]
[373048561,1752847840561,-460.0,0.0001659,2]
[373048563,1752847840570,-537.35,0.0001659,2]
[373048565,1752847840580,-460.0,0.0001659,2]
[373048567,1752847840589,-239.97684634,0.0001659,2]
[373048570,1752847840602,-220.02315366,0.0001659,2]
[373048572,1752847840612,-460.0,0.0001659,2]
[373048574,1752847840621,-460.0,0.0001659,2]
[373048576,1752847840633,-460.0,0.0001659,2]
[373048578,1752847840643,-460.0,0.0001659,2]
[373048580,1752847840652,-460.0,0.0001659,2]
[373048582,1752847840662,-460.0,0.0001659,2]
[373048584,1752847840672,-460.0,0.0001659,2]
[373048586,1752847840681,-460.0,0.0001659,2]
[373048588,1752847840691,-460.0,0.0001659,2]
[373048590,1752847840700,-460.0,0.0001659,2]
[373048591,1752847840710,-460.0,0.0001659,2]
[373048593,1752847840719,-460.0,0.0001659,2]
[373048596,1752847840729,-460.0,0.0001659,2]
[373048598,1752847840739,-460.0,0.0001659,2]
[373048600,1752847840749,-813.69,0.0001659,2]
[373048602,1752847840759,-460.0,0.0001659,2]
[373048604,1752847840768,-460.0,0.0001659,2]
[373048605,1752847840777,-500.0,0.00016591,2]
[373048608,1752847840786,-460.0,0.00016591,2]
[373048609,1752847840796,-460.0,0.00016591,2]
[373048611,1752847840805,-460.0,0.00016591,2]
[373048613,1752847840815,-460.0,0.00016591,2]